Cogmind - Beta 15 @@@ ROGUE MODE // 2025.05.06 @ 01:01:43 Player: jumpy Result: Destroyed by L-41 Fighter with Axe Performance ------------- Evolutions (3) 1500 Regions Visited (4) 800 Robots Destroyed (52) 260 Value Destroyed (1713) 1713 Prototype IDs (0) 0 Alien Tech Used (0) 0 Bonus (0) 0 TOTAL SCORE: 4273 Bonus ------- None Cogmind --------- Core Integrity 0/700 Matter 300/300 Energy 100/100 System Corruption 3% Temperature Cool (0) Movement Core (500) Ox9 Location -7/Factory Parts ------- > --- POWER (1) -------- (None) > --- PROPULSION (3) --- (None) > --- UTILITY (6) ------ Large Storage Unit Advanced Visual Processing Unit Improved Melee Analysis Suite Core Shielding Core Shielding > --- WEAPON (3) ------- Gatling Laser Axe > --- INVENTORY (15) --- Light Ion Engine Light Deuterium Engine Light Nuclear Core Light Nuclear Core Spread Laser Field Laser Gatling Laser Particle Cannon Heavy Ion Cannon Assault Rifle Shotgun Advanced Assault Cannon Heavy Flail Peak State ------------ > --- POWER ------------ Light Nuclear Core > --- PROPULSION ------- Light Treads Light Treads > --- UTILITY ---------- Large Storage Unit Advanced Visual Processing Unit Improved Melee Analysis Suite Core Shielding Core Shielding > --- WEAPON ----------- Gatling Laser Great Maul Axe > --- INVENTORY -------- Light Ion Engine Light Deuterium Engine Light Nuclear Core Spread Laser Field Laser Gatling Laser Particle Cannon Heavy Ion Cannon Assault Rifle Shotgun Advanced Assault Cannon Heavy Flail [Rating: 28] Favorites ----------- Power Light Nuclear Core Engine Light Ion Engine Power Core Light Nuclear Core Propulsion Light Treads Treads Light Treads Wheel Armored Wheel Utility Large Storage Unit Device Seismic Detector Storage Large Storage Unit Processor Advanced Visual Processing Unit Protection Light Armor Plating Weapon Small Laser Energy Gun Small Laser Ballistic Gun Shotgun Ballistic Cannon Improved Light Cannon Impact Weapon Great Maul Slashing Weapon Axe Build | -11 -10 -9 -8 -7 ------- Run | Yrd Mat Mat Mat Fac Slots Evolved 6 | . . 2 2 2 Power . | . . . . . Propulsion 1 | . . . . 1 Utility 4 | . . 2 1 1 Weapon 1 | . . . 1 . Parts Attached 52 | 9 1 15 9 18 Power 8 | 2 . 2 1 3 Engine 5 | 2 . 2 . 1 Core 3 | . . . 1 2 Reactor . | . . . . . Propulsion 15 | 2 . 6 4 3 Treads 13 | 2 . 6 4 1 Leg . | . . . . . Wheel 2 | . . . . 2 Hover . | . . . . . Flight . | . . . . . Utility 12 | 2 1 2 2 5 Device 2 | 1 . . . 1 Storage 2 | 1 1 . . . Processor 3 | . . . 1 2 Hackware . | . . . . . Protection 5 | . . 2 1 2 Artifact . | . . . . . Weapon 17 | 3 . 5 2 7 Energy Gun 9 | 2 . 3 1 3 Energy Cannon . | . . . . . Ballistic Gun 5 | 1 . 1 1 2 Ballistic Cannon 1 | . . 1 . . Launcher . | . . . . . Special Weapon . | . . . . . Impact Weapon 1 | . . . . 1 Slashing Weapon 1 | . . . . 1 Piercing Weapon . | . . . . . Special Melee Weapon . | . . . . . Unidentified Prototypes . | . . . . . Parts Lost 27 | . . 5 1 21 Power 5 | . . 2 . 3 Propulsion 11 | . . 2 . 9 Utility 4 | . . . 1 3 Weapon 7 | . . 1 . 6 Highest Loss Streak 6 | . . 2 1 6 To Critical Strikes . | . . . . . Average Backups 7 | 3 4 6 12 9 Power 1 | . 1 1 . 1 Propulsion 2 | 1 2 2 5 1 Utility . | . . . . . Weapon 3 | . 1 2 6 5 Tool/Special . | . . . . . Unused Backups 10 | . . 3 . 7 Power 2 | . . . . 2 Propulsion 2 | . . 2 . . Utility . | . . . . . Weapon 6 | . . 1 . 5 Tool/Special . | . . . . . Average Slot Usage (%) 81 | . 98 83 84 66 Engine 7 | . 13 10 1 2 Core 1 | . . . 7 2 Treads 19 | . 27 21 18 11 Wheel 1 | . . . . 4 Device 8 | . 13 11 7 1 Storage 10 | . 14 11 9 7 Processor 3 | . . . 4 10 Protection 5 | . . 6 9 4 Energy Gun 12 | . 28 12 9 4 Ballistic Gun 5 | . . 7 9 2 Ballistic Cannon 2 | . . 1 9 . Impact Weapon 1 | . . . . 6 Slashing Weapon 1 | . . . . 4 Peak Build Rating 28 | 7 7 12 22 28 Average Rating 13 | 4 6 10 17 22 On Entrance 9 | . 7 7 11 21 Naked Turns . | . . . . . Heaviest Build 41 | 13 28 37 39 41 Greatest Support 62 | 40 40 40 42 62 Greatest Overweight (x) 12 | . 3 1 . 12 Average Overweight (x) . | . . . . . Largest Inventory Capacity 15 | 8 15 15 15 15 Average Capacity 13 | 6 8 15 15 15 Most Carried 15 | 4 5 10 15 14 Average Carried 7 | 3 4 6 12 9 Final Capacity 15 | 8 15 15 15 15 Final Carried 15 | 4 4 10 15 13 Class Distribution -------------------- 45% | Mutant 28% | Scavenger-Mutant 10% | Scavenger-Tank 8% | Gladiator 5% | Tank Dominant Class ---------------- Mutant | -10/Materials Scavenger-Mutant | -9/Materials Scavenger-Tank | -8/Materials Mutant | -7/Factory Resources | -11 -10 -9 -8 -7 ----------- Run | Yrd Mat Mat Mat Fac Matter Collected 1261 | 260 93 394 143 371 Remotely . | . . . . . Salvage Created 1990 | 41 123 788 258 780 Parts 111 | 4 15 48 19 25 Haulers Intercepted 1 | . . . 1 . Recyclers Shooed 2 | . 1 . . 1 Parts Field Recycled . | . . . . . Retrieved Matter . | . . . . . Parts Self-Destructed . | . . . . . Prevented . | . . . . . Kills | -11 -10 -9 -8 -7 ------- Run | Yrd Mat Mat Mat Fac Combat Hostiles Destroyed 43 | . 4 19 5 15 Melee 7 | . . . . 7 Guns 32 | . 4 19 3 6 Cannons 2 | . . . 2 . Classes Destroyed 12 | 1 4 3 1 3 Worker 1 | . 1 . . . Builder 1 | . . 1 . . Tunneler 2 | 2 . . . . Hauler 1 | . . . 1 . Recycler 1 | . . . . 1 Watcher 3 | . 1 2 . . Swarmer 9 | . 3 3 . 3 Grunt 20 | . 1 9 1 9 Brawler 1 | . . 1 . . Duelist 1 | . . . . 1 Sentry 11 | . . 6 4 1 Programmer 1 | . . . . 1 Best Kill Streak 8 | 1 3 8 2 4 Combat Bots Only 8 | . 3 8 2 4 Max Kills in Single Turn 2 | 1 1 1 1 2 Gunslinging . | . . . . . Exploded . | . . . . . Melee 1 | . . . . 1 Uniques/NPCs Destroyed . | . . . . . Combat | -11 -10 -9 -8 -7 -------- Run | Yrd Mat Mat Mat Fac Hostile Shots Fired 446 | . 25 104 42 275 Missed 119 | . 9 23 6 81 Hits 327 | . 16 81 36 194 Melee 10 | . . . . 10 Projectile 317 | . 16 81 36 184 AOE 4 | . . . . 4 Critical Strikes 9 | . . 5 1 3 Actively Blocked 2 | . . . . 2 Damage Taken 4331 | . 131 1029 418 2753 Core 1042 | . 13 206 94 729 Absorbed by Shields . | . . . . . Redirected to Shielding 23 | . . . . 23 Core Remaining (%) 81 | 100 94 48 82 . Volleys Fired 123 | 2 17 61 17 26 Largest 3 | 2 2 2 3 3 Hottest 119 | 80 80 88 119 119 Shots Fired 250 | 4 34 118 49 45 Gun 230 | 4 34 118 32 42 Cannon 20 | . . . 17 3 Launcher . | . . . . . Special . | . . . . . Kinetic 115 | . . 60 32 23 Thermal 135 | 4 34 58 17 22 Explosive . | . . . . . Electromagnetic . | . . . . . Robot Hit Streak 18 | 3 7 18 6 10 Robot Miss Streak 7 | . 4 7 5 4 Penetration Max 1 | . . . . 1 Secondary Targets 3 | . . 2 . 1 Max Gunslinging Chain 1 | . . 1 . 1 Shots Hit Robots 205 | 3 21 87 26 68 Core Hits 102 | 2 9 55 8 28 Critical Kills . | . . . . . Critical Parts Destroyed 2 | . . . . 2 Critical Strikes 10 | . . 4 1 5 Burn 5 | . . 4 . 1 Blast 1 | . . . 1 . Smash 2 | . . . . 2 Sever 2 | . . . . 2 Melee Attacks 45 | . . . . 45 Impact 13 | . . . . 13 Slashing 32 | . . . . 32 Piercing . | . . . . . Sneak Attacks 1 | . . . . 1 Combat Hostiles . | . . . . . Follow-up Attacks 4 | . . . . 4 Damage Inflicted 4150 | 32 242 1332 496 2048 Guns 2637 | 32 242 1325 308 730 Cannons 231 | . . . 188 43 Explosions . | . . . . . Melee 1275 | . . . . 1275 Ramming 7 | . . 7 . . Kinetic 1333 | . . 566 332 435 Thermal 1535 | 32 242 759 164 338 Explosive . | . . . . . Electromagnetic . | . . . . . Impact 351 | . . . . 351 Slashing 924 | . . . . 924 Piercing . | . . . . . Highest Corruption 3 | . . . . 3 Average Corruption 2 | . . . . 2 Corruption Purged . | . . . . . Corruption Blocked . | . . . . . Effects 8 | . . . . 8 Message Errors 2 | . . . . 2 Matter Fused 2 | . . . . 2 Heat Flow Errors 2 | . . . . 2 Data Loss (minor) 1 | . . . . 1 Data Loss (major) 1 | . . . . 1 Overload Shots . | . . . . . Overflow Damage 106 | . . . . 106 Projectiles . | . . . . . Explosions . | . . . . . Melee 106 | . . . . 106 Knockbacks 6 | . . . 1 5 Impact 3 | . . . . 3 Kinetic 1 | . . . 1 . Secondary 2 | . . . . 2 Self-Inflicted Damage . | . . . . . Shots . | . . . . . Rammed 2 | . . 1 1 . Targets Rammed 2 | . . 1 1 . Kicked . | . . . . . Crushed . | . . . . . Highest Temperature 361 | 18 90 361 339 251 Average Temperature 87 | 12 33 103 129 42 Received Heat Transfer 1503 | . 12 516 180 795 Effects 1 | . . 1 . . Damage (minor) 1 | . . 1 . . Siege Activations . | . . . . . Martial Activations . | . . . . . Shielding Activations . | . . . . . Robots Disrupted . | . . . . . Combat Hostiles . | . . . . . Robots Corrupted 2 | . . . . 2 Combat Hostiles 2 | . . . . 2 Parts Fried 1 | . . . . 1 Impact Corruptions 5 | . . . . 5 Robots Melted . | . . . . . Combat Hostiles . | . . . . . Parts Melted 8 | . 1 6 . 1 Heat Transferred 3585 | 75 550 1774 370 816 Parts Sabotaged . | . . . . . Parts Stolen . | . . . . . Parts Stripped . | . . . . . Power Chain Reactions . | . . . . . Alert | -11 -10 -9 -8 -7 ------- Run | Yrd Mat Mat Mat Fac Maximum Alert Level 1 | . . 1 . . Low Security (%) 94 | 100 100 84 100 100 Level 1 5 | . . 15 . . Level 2 . | . . . . . Level 3 . | . . . . . Level 4 . | . . . . . Level 5 . | . . . . . High Security . | . . . . . Max Security . | . . . . . Peak Influence 240 | 5 70 240 65 81 Initial 63 | . . 18 63 20 Average 56 | . 6 119 35 18 Influence Increases 1201 | 10 102 542 191 356 Destroy 0b10 Robot/C 860 | . 80 380 100 300 Destroy 0b10 Robot/NC 45 | 10 10 15 5 5 Destroy Leader 228 | . 12 114 52 50 Disable Machine 30 | . . . 30 . Destroy Structure 8 | . . 3 4 1 Lose Combat Pursuer 30 | . . 30 . . Influence Decreases 1182 | 10 56 438 295 383 Entered New Map 141 | . . 28 87 26 Time Decay 866 | 10 56 360 198 242 Lost Part 175 | . . 50 10 115 Squads Dispatched 7 | . . 3 2 2 Investigation 3 | . . 2 1 . Extermination 2 | . . . . 2 Reinforcement 1 | . . 1 . . Assault . | . . . . . Garrison 1 | . . . 1 . Intercept . | . . . . . Searches Triggered . | . . . . . Construction Impeded . | . . . . . Haulers Reinforced . | . . . . . Active Scanning Responses . | . . . . . Cargo Convoy Interrupts . | . . . . . Stealth | -11 -10 -9 -8 -7 --------- Run | Yrd Mat Mat Mat Fac Distress Signals 6 | . 1 1 1 3 Communications Jammed . | . . . . . Distress Signals . | . . . . . Times Spotted 62 | . 7 25 10 20 Peak Tracking Total 7 | . 5 7 3 4 Tactical Retreats 2 | . . 2 . . Traps | -11 -10 -9 -8 -7 ------- Run | Yrd Mat Mat Mat Fac Traps Triggered 6 | . 3 2 1 . Indirectly . | . . . . . Trap Hack Attempts . | . . . . . Triggered . | . . . . . Disarmed . | . . . . . Reprogrammed . | . . . . . Reused . | . . . . . Traps Extracted . | . . . . . Installed . | . . . . . Triggered . | . . . . . Machines | -11 -10 -9 -8 -7 ---------- Run | Yrd Mat Mat Mat Fac Machines Disabled 2 | . . . 2 . Max in Single Turn 1 | . . . 1 . Machines Repaired . | . . . . . Machines Dismantled . | . . . . . Machines Sabotaged . | . . . . . Overloaded Fab Kills . | . . . . . Hacking | -11 -10 -9 -8 -7 --------- Run | Yrd Mat Mat Mat Fac Machines Accessed 4 | . . 4 . . Terminals 4 | . . 4 . . Fabricators . | . . . . . Repair Stations . | . . . . . Recycling Units . | . . . . . Scanalyzers . | . . . . . Garrison Access . | . . . . . Total Hacks 6 | . . 6 . . Successful 1 | . . 1 . . Failed 5 | . . 5 . . Catastrophic 2 | . . 2 . . Database Lockouts . | . . . . . Manual 6 | . . 6 . . Terminals 6 | . . 6 . . Fabricators . | . . . . . Repair Stations . | . . . . . Recycling Units . | . . . . . Scanalyzers . | . . . . . Garrison Access . | . . . . . Terminal Hacks 1 | . . 1 . . Robot Analysis 1 | . . 1 . . Fabricator Hacks . | . . . . . Repair Station Hacks . | . . . . . Recycling Unit Hacks . | . . . . . Scanalyzer . | . . . . . Garrison Access Hacks . | . . . . . Unauthorized Hacks . | . . . . . Terminals . | . . . . . Fabricators . | . . . . . Repair Stations . | . . . . . Recycling Units . | . . . . . Scanalyzers . | . . . . . Garrison Access . | . . . . . Data Cores Recovered . | . . . . . Used . | . . . . . Hacking Detections 2 | . . 2 . . Full Trace Events . | . . . . . Feedback Events . | . . . . . Feedback Blocked . | . . . . . Robot Schematics Acquired . | . . . . . Robots Built . | . . . . . Authchips . | . . . . . Time . | . . . . . Total Robot Build Rating . | . . . . . Part Schematics Acquired . | . . . . . Parts Built . | . . . . . Authchips . | . . . . . Time . | . . . . . Total Part Build Rating . | . . . . . Parts Repaired . | . . . . . Time . | . . . . . Parts Recycled . | . . . . . Recycled Matter . | . . . . . Retrieved Matter . | . . . . . Retrieved Components . | . . . . . Parts Scanalyzed . | . . . . . Part Schematics Acquired . | . . . . . Parts Damaged . | . . . . . Bothacking | -11 -10 -9 -8 -7 ------------ Run | Yrd Mat Mat Mat Fac Used RIF Installer . | . . . . . Robots Hacked . | . . . . . Non-combat . | . . . . . Combat . | . . . . . Robot Hacks Applied . | . . . . . Relay Couplers Released . | . . . . . Fabnet Peak Effective % . | . . . . . Robots Rewired . | . . . . . Allies Hacked . | . . . . . Hacks Repelled . | . . . . . Allies | -11 -10 -9 -8 -7 -------- Run | Yrd Mat Mat Mat Fac Total Allies . | . . . . . Largest Group . | . . . . . Highest-Rated Group . | . . . . . Highest-Rated Ally . | . . . . . Total Orders . | . . . . . Ally Attacks . | . . . . . Total Damage . | . . . . . Kills . | . . . . . Allies Corrupted . | . . . . . Allies Melted . | . . . . . Intel | -11 -10 -9 -8 -7 ------- Run | Yrd Mat Mat Mat Fac Active Infowar (turns) 2923 | 29 508 1136 417 833 Optics 1028 | . . . 195 833 Sensors 137 | . . . . 137 Seismic 2040 | 29 508 1136 367 . Robot Analysis Total 1 | . . 1 . . Derelict Logs Recovered . | . . . . . Drone Launches . | . . . . . Drone Recoveries . | . . . . . Exploration | -11 -10 -9 -8 -7 ------------- Run | Yrd Mat Mat Mat Fac Turns Passed 3026 | 119 521 1136 417 833 Spaces Moved 1478 | 59 279 559 218 363 Core 8 | 3 1 . . 4 Treads 1356 | 56 278 559 218 245 Legs . | . . . . . Wheels 114 | . . . . 114 Hover . | . . . . . Flight . | . . . . . Fastest Speed 50 | 50 160 160 152 105 Average Speed 156 | 154 160 160 158 147 Slowest Speed 650 | 160 200 240 160 650 Overloaded Moves . | . . . . . Propulsion Burnouts . | . . . . . Robots Hopped . | . . . . . Potential Cave-ins . | . . . . . Cave-ins Triggered . | . . . . . Exploration Rate (%) 28 | 4 52 50 24 12 Regions Visited 4 Branch Regions . Pre-discovered Areas . | . . . . . Known Exits Taken . | . . . . . Unknown Exits Taken 4 | 1 1 1 1 . Scrap Searched . | . . . . . Spaces Dug . | . . . . . Terrain Destroyed 3 | . . . 3 . Melee . | . . . . . Projectile 3 | . . . 3 . AOE . | . . . . . Terrain Rammed . | . . . . . Walls Destroyed . | . . . . . Machines Disabled . | . . . . . Actions | -11 -10 -9 -8 -7 --------- Run | Yrd Mat Mat Mat Fac Total 1871 | 79 315 686 253 538 Wait 126 | 7 10 29 2 78 Move 1475 | 58 278 559 217 363 Hop . | . . . . . Pick Up 21 | 3 . 9 3 6 Fast Attach 28 | 7 8 3 2 8 Attach 16 | . . 4 1 11 Detach . | . . . . . Swap 27 | 2 1 12 6 6 Drop 15 | . 1 9 4 1 Fire 123 | 2 17 61 17 26 Melee 39 | . . . . 39 Ram . | . . . . . Kick . | . . . . . Crush 1 | . . . 1 . Escape Stasis . | . . . . . Rewire . | . . . . . Trap . | . . . . . Miscellaneous . | . . . . . Route ------- -11/Scrapyard -10/Materials (discovered 4 exits: *Mat x2 / [*Min] / [*Sub]) -9/Materials (discovered 2 exits: [*Mat] / [*Min]) -8/Materials -7/Factory History --------- Turn | Location | Event 69 | -11/Scrapyard | Discovered new exit (range 14) 120 | -11/Scrapyard | Entered Materials 121 | -10/Materials | Met a group of wandering Federalists 167 | -10/Materials | Discovered new exit (range 15) 311 | -10/Materials | Build established: Mutant 332 | -10/Materials | Discovered new exit (range 3) 354 | -10/Materials | Discovered new exit (range 13) 625 | -10/Materials | Discovered new exit (range 7) 641 | -10/Materials | Entered another Materials area 641 | -9/Materials | Evolved 2 slots: Utility x2 1064 | -9/Materials | Destroyed 8 combat bots 1305 | -9/Materials | Build established: Scavenger-Mutant 1483 | -9/Materials | Discovered new exit (range 8) 1578 | -9/Materials | Core integrity fell below 50% 1647 | -9/Materials | Discovered new exit (range 9) 1777 | -9/Materials | Entered another Materials area 1777 | -8/Materials | Evolved 2 slots: Utility x1, Weapon x1 2057 | -8/Materials | Discovered new exit (range 9) 2075 | -8/Materials | Build established: Scavenger-Tank 2176 | -8/Materials | Garrison activated, responded to threat 2194 | -8/Materials | Entered Factory 2194 | -7/Factory | Evolved 2 slots: Propulsion x1, Utility x1 2307 | -7/Factory | Lost 6 parts (2n1u3w) 2552 | -7/Factory | Lost 6 parts (3n1u2w) 2691 | -7/Factory | Core integrity fell below 50% 2787 | -7/Factory | Core integrity fell below 20% 2820 | -7/Factory | Lost 4 parts (1p2n1u) 3027 | -7/Factory | Destroyed by L-41 Fighter with Axe Last Messages --------------- 02994_ Lgt. Treads destroyed. 02996_ S-27 Virus destroyed. 02998_ K-01 Serf collects debris. 03003_ W-25 Informer sends out distress signal. 03006_ K-01 Serf collects debris. 03008_ R-06 Scavenger collects VTOL Module. 03009_ Lgt. Treads destroyed. 03011_ K-01 Serf collects debris. 03012_ S-27 Virus destroyed. 03014_ Sneak attack on R-06 Scavenger. 03014_ R-06 Scavenger destroyed. 03015_ K-01 Serf collects debris. 03018_ Acquired 20 matter. 03018_ K-01 Serf collects debris. 03019_ R-06 Scavenger collects Autogun. 03021_ Lgt. Nuclear Core destroyed. 03023_ K-01 Serf collects debris. 03023_ Great Maul destroyed. 03023_ R-06 Scavenger collects Lgt. Nuclear Core. 03027_ K-01 Serf collects debris. Map ----- +----------------------------------------------------+ | ????????????????????????????????????????????????? | | ????????????????????????????????????????????????? | | ????????????????????????????????????????????????? | | ????????????????????????????????????????????????? | | ????????????????????????????????????????????????? | | ????????????????????????????????????????????????? | | ????????????????????????????????????????????????? | | ????????????????????????????????????????????????? | | ????????????????????????????????????????????????? | | ????????????????????????????????????????????????? | | ????????????????????????????????????????????????? | | ????????????????????????????????????????????????? | | ????????????????????????????????????????????????? | | ????????????????????????????????????????????????? | | ????????????????????????????????????#####???????? | | ??????????????????????????????????? ??????? | | ?????????????????????????????????? ??????? | | ????????????????????????????????? !! ??????? | | ??????????#?????#???????????????? !! ?????? | | ??????????# ???# ?????????????? ?????? | | ??????????# ?? ????????????? ????? | | ??????????# ###+############ ????? | | ??????????# u! ????? | | ??????????# w ]! ???? | | ??????????+ ]! ???? | | ??????????# u @=r ???? | | ??????????# l%kr ???? | | ??????????###+###########!!% #############?????? | | ????????????????????????# # """""" !#?????? | | ????????????????????????# # """""" #?????? | | ????????????????????????# # """""" #?????? | | ????????????????????????# # """""" #?????? | | ????????????????????????# ^ a# #?????? | | ????????????????????????# # #?????? | | ????????????????????????# # % #?????? | | ????????????????????????# ###+#######+###???? | | ????????????????????????# #???? | | ????????????????????????# #???? | | ????????????????????????# #???? | | ????????????????????????# #???? | | ????????????????????????# #???? | | ????????????????????????#########+#####% #???? | | ??????????????????????????# #??# ##### | | ??????????????????????????# #??# | | ??????????????????????????# #??# | | ??????????????????????????# #??# ! """ | | ??????????????????????????# #### ! """ | | ??????????????????????????# ##"" """ | | ??????????????????????????# ##"" | | ??????????????????????????# ##"" """ | +----------------------------------------------------+ Best States ------------- Heat Dissipation 34 Energy Generation 18 Energy Capacity 265 Matter Stores 300 Matter Capacity 300 Sight Range 20 Robot Scan Range 15 Terrain Scan Density 10 Armor Coverage 300 Core Shielding 20 Evasion (%) 40 Melee Accuracy 6 Recoil Reduction 3 Item Schematics ----------------- None Robot Schematics ------------------ None Fabricated ------------ Nothing Repaired ---------- Nothing Alien Tech Used ----------------- None Achievements -------------- None Challenges ------------ None Game ------ Seed ArcHardlightStorage Manual? 0 Play Time 00:19:53 Cumulative 79.6 hours Start 2025.05.06 @ 00:41:42 End 2025.05.06 @ 01:01:43 Sessions 1 Manual Loads 0 Difficulty Rogue Special Mode None Game No. 205 Rogue 205 Adventurer 0 Explorer 0 Win Type - Total 2 Types 2/0/0/0/0/0/0/0/0/0 Lore% 34 Gallery% 43 Achievement% 35 Wizard Run 0 Options --------- Layout 0 ASCII 0 Keyboard 0 Movement Numpad Keybinds 0 Fullscreen 2 Font 18/Terminus Map View 76x50 Zoom Use 0% Tactical HUD 1 Map Filters NONE Filters NONE Steam 1 RUN: a5e9526a-9330-4fd1-bb2d-0ec5146bf7f1